[Event "42nd WALTON Women-ch Bangladesh 2024"]
[Site "Dhaka"]
[Date "2024.05.22"]
[Round "3.2"]
[White "Warsia, Khusbu"]
[Black "Nusrat Jahan, Alo"]
[Result "0-1"]
[ECO "B33"]
[WhiteElo "1905"]
[BlackElo "1850"]
[Annotator "RC"]
[PlyCount "60"]
[EventDate "2024.05.20"]
[EventType "tourn"]
[EventCountry "BAN"]
[SourceTitle "playchess.com"]
[Source "ChessBase"]
[SourceQuality "1"]
[TimeControl "40/5400+30:1800+30"]

1. e4 {[%emt 0:02:40]} c5 {[%emt 0:00:11]} 2. Nf3 {[%emt 0:00:09]} e6 {[%emt 0:00:13]} 3. d4 {[%emt 0:00:05]} cxd4 {[%emt 0:00:09]} 4. Nxd4 {[%emt 0:00:02]} Nf6 {[%emt 0:00:14]} 5. Nc3 {[%emt 0:00:04]} Nc6 {[%emt 0:00:09]} 6. Ndb5 {[%emt 0:00:49]} d6 {[%emt 0:00:19]} 7. Bf4 {[%emt 0:00:02]} e5 {[%emt 0:00:23]} 8. Bg5 {[%emt 0:00:04]} a6 {[%emt 0:00:36]} 9. Na3 {[%emt 0:01:12]} b5 {[%emt 0:01:35]} 10. Nd5 {[%emt 0:00:10]} Be7 {[%emt 0:00:16]} 11. Bxf6 {[%emt 0:00:13]} Bxf6 {[%emt 0:01:26]} 12. c4 {[%emt 0:00:02]} b4 {[%emt 0:00:07]} 13. Nc2 {[%emt 0:00:04]} a5 {[%emt 0:00:50]} 14. h4 {[%emt 0:00:16]} Rb8 {[%emt 0:02:47]} 15. g3 {[%emt 0:00:13]} O-O {[%emt 0:01:27]} 16. Qd3 {[%emt 0:01:25]} Be6 {[%emt 0:05:44]} 17. Nce3 {[%emt 0:00:31]} Nd4 {[%emt 0:01:50]} 18. O-O-O {[%emt 0:01:00]} Be7 {[%emt 0:07:13]} 19. Bg2 {[%emt 0:05:51]} Qd7 {[%emt 0:03:57]} 20. f4 {[%emt 0:12:18]} Bd8 {[%emt 0:09:16]} 21. f5 {[%emt 1:13:50]} Bxd5 {[%emt 0:00:45]} 22. Nxd5 {[%emt 0:00:00]} Qa4 {[%emt 0:08:37]} 23. Kb1 {[%emt 0:00:00]} b3 {[%emt 0:00:22]} 24. a3 {[%emt 0:00:00]} Nc2 {[%emt 0:07:21]} 25. Nc3 {[%emt 0:00:00]} Nxa3+ {[%emt 0:04:22]} 26. bxa3 {[%emt 0:00:00]} Qxa3 {[%emt 0:00:06]} 27. Qxd6 {[%emt 0:00:00]} Rb4 {[%emt 0:00:05]} 28. Qxd8 {[%emt 0:00:00]} Ra4 {[%emt 0:00:40]} 29. Qxf8+ {[%emt 0:00:00]} Kxf8 {[%emt 0:00:43]} 30. Nxa4 {[%emt 0:00:00]} Qa2+ {[%emt 0:00:08]} 0-1

[Event "42nd WALTON Women-ch Bangladesh 2024"]
[Site "Dhaka"]
[Date "2024.05.22"]
[Round "3.3"]
[White "Tabassum Sadia, Shahjahan"]
[Black "Israt, Jahan Diba"]
[Result "0-1"]
[ECO "D36"]
[WhiteElo "1567"]
[BlackElo "1904"]
[Annotator "NA RC"]
[PlyCount "66"]
[EventDate "2024.05.20"]
[EventType "tourn"]
[EventCountry "BAN"]
[SourceTitle "playchess.com"]
[Source "ChessBase"]
[SourceQuality "1"]
[TimeControl "40/5400+30:1800+30"]

1. d4 {[%emt 0:00:22]} d5 {[%emt 0:00:05]} 2. c4 {[%emt 0:00:04]} e6 {[%emt 0:00:03]} 3. Nc3 {[%emt 0:00:11]} Nf6 {[%emt 0:00:06]} 4. cxd5 {[%emt 0:00:41]} exd5 {[%emt 0:00:07]} 5. Bg5 {[%emt 0:00:14]} Nbd7 {[%emt 0:00:28]} 6. e3 {[%emt 0:00:56]} Be7 {[%emt 0:00:09]} 7. Bd3 {[%emt 0:00:26]} O-O {[%emt 0:00:23]} 8. Nge2 {[%emt 0:00:06]} h6 {[%emt 0:00:18]} 9. Bh4 {[%emt 0:00:15]} Re8 {[%emt 0:02:04]} 10. O-O {[%emt 0:00:16]} Nf8 {[%emt 0:00:50]} 11. Rb1 {[%emt 0:01:23]} c6 {[%emt 0:00:53]} 12. Qc2 {[%emt 0:01:45]} Nh5 {[%emt 0:02:18] D36: Queen's Gambit Declined: Exchange Variation: Main line (5 Bg5 c6 6 Qc2).} 13. Bxe7 {[%emt 0:01:39]} Qxe7 {[%emt 0:00:13]} 14. Na4 {[%emt 0:01:43]} Qg5 {[%emt 0:04:26]} 15. Ng3 {[%emt 0:09:24]} Nxg3 {[%emt 0:02:17]} 16. hxg3 {[%emt 0:00:13]} h5 {[%emt 0:01:36]} 17. Nc3 {[%emt 0:06:14]} h4 {[%emt 0:06:28]} 18. Ne2 {[%emt 0:02:40] [#]} (18. gxh4 $15 Qxh4 19. Ne2) 18... hxg3 {[%emt 0:04:32]} (18... Re6 $1 $17 19. f4 Qe7 20. gxh4 Rxe3) 19. Nxg3 {[%emt 0:00:15]} g6 {[%emt 0:12:04]} 20. Rfe1 {[%emt 0:08:16]} Bg4 {[%emt 0:13:32]} 21. b4 {[%emt 0:06:22]} Rac8 {[%emt 0:05:27]} 22. Qc5 {[%emt 0:04:59]} b6 {[%emt 0:07:49]} 23. Qc2 $15 {[%emt 0:00:46]} Nd7 {[%emt 0:01:40]} 24. Ba6 {[%emt 0:01:31]} Rc7 {[%emt 0:01:15]} 25. Be2 {[%emt 0:00:24]} Kg7 {[%emt 0:02:54]} 26. Bxg4 {[%emt 0:02:53]} Qxg4 {[%emt 0:00:10]} 27. Qe2 {[%emt 0:07:27]} Qh4 {[%emt 0:03:15]} 28. Qf3 {[%emt 0:01:18]} Rcc8 {[%emt 0:05:10]} 29. e4 {[%emt 0:06:13]} dxe4 {[%emt 0:05:46]} 30. Nxe4 {[%emt 0:03:25]} Rh8 {[%emt 0:01:45]} 31. Kf1 {[%emt 0:18:05]} Rce8 {[%emt 0:01:47]} 32. Ng3 {[%emt 0:01:50]} Qh1+ {[%emt 0:00:17]} 33. Nxh1 {[%emt 0:01:35]} Rxh1# {[%emt 0:00:06]} 0-1

[Event "42nd WALTON Women-ch Bangladesh 2024"]
[Site "Dhaka"]
[Date "2024.05.22"]
[Round "3.4"]
[White "Hamid, Rani"]
[Black "Ahmed, Walijah"]
[Result "1/2-1/2"]
[ECO "B59"]
[WhiteElo "1863"]
[BlackElo "1878"]
[Annotator "NA RC"]
[PlyCount "71"]
[EventDate "2024.05.20"]
[EventType "tourn"]
[EventCountry "BAN"]
[SourceTitle "playchess.com"]
[Source "ChessBase"]
[SourceQuality "1"]
[TimeControl "40/5400+30:1800+30"]

1. e4 {[%emt 0:00:03]} c5 {[%emt 0:00:05]} 2. Nf3 {[%emt 0:00:05]} d6 {[%emt 0:00:06]} 3. d4 {[%emt 0:00:09]} cxd4 {[%emt 0:00:08]} 4. Nxd4 {[%emt 0:00:05]} Nf6 {[%emt 0:00:07]} 5. Nc3 {[%emt 0:00:11]} Nc6 {[%emt 0:00:06]} 6. Be2 {[%emt 0:00:19]} e5 {[%emt 0:00:26]} 7. Nb3 {[%emt 0:00:36]} Be7 {[%emt 0:00:14]} 8. O-O {[%emt 0:00:06]} O-O {[%emt 0:00:16]} 9. f4 {[%emt 0:00:36]} a5 {[%emt 0:00:47]} 10. a4 {[%emt 0:01:02]} Nb4 {[%emt 0:01:07]} 11. f5 {[%emt 0:01:31] B59: Classical Sicilian: 6 Be2 e5 7 Nb3.} Bd7 {[%emt 0:01:29]} 12. Bg5 {[%emt 0:02:31]} Bc6 {[%emt 0:06:35]} 13. Bxf6 {[%emt 0:00:41]} Bxf6 {[%emt 0:00:07]} 14. Nd5 {[%emt 0:02:24]} Bg5 {[%emt 0:03:41]} 15. c3 {[%emt 0:05:14]} Nxd5 {[%emt 0:02:02]} 16. exd5 {[%emt 0:00:20]} Bd7 {[%emt 0:00:10]} 17. Kh1 {[%emt 0:01:54]} Qb6 {[%emt 0:23:54]} 18. Nd2 {[%emt 0:04:31]} Bxd2 {[%emt 0:03:50]} 19. Qxd2 {[%emt 0:00:22]} f6 {[%emt 0:00:17]} 20. g4 {[%emt 0:04:42]} e4 {[%emt 0:07:55]} 21. c4 {[%emt 0:09:19]} Rae8 {[%emt 0:01:40]} 22. Qc3 {[%emt 0:05:00]} Re5 {[%emt 0:01:32]} 23. b3 {[%emt 0:01:19]} Qc5 {[%emt 0:01:34]} 24. Rad1 {[%emt 0:00:47]} g6 {[%emt 0:03:30]} 25. Qg3 {[%emt 0:04:15]} Rf7 $11 {[%emt 0:05:43]} 26. Rg1 {[%emt 0:07:58]} Rg7 {[%emt 0:04:51]} 27. fxg6 {[%emt 0:00:44]} Rxg6 {[%emt 0:01:48]} 28. Qf4 {[%emt 0:00:21]} Kg7 {[%emt 0:01:39]} 29. Rdf1 {[%emt 0:02:36]} Qb6 {[%emt 0:10:00]} 30. g5 {[%emt 0:03:37]} f5 {[%emt 0:01:12]} 31. Rg3 {[%emt 0:01:35]} e3 {[%emt 0:03:14]} 32. Bd3 {[%emt 0:06:04]} Qxb3 {[%emt 0:08:52]} 33. Rxe3 {[%emt 0:01:00]} Qc3 {[%emt 0:00:55]} 34. Rfe1 {[%emt 0:03:41]} Qd2 {[%emt 0:03:45]} 35. R1e2 {[%emt 0:05:31]} Qc1+ {[%emt 0:00:35]} 36. Re1 {[%emt 0:04:15]} 1/2-1/2

[Event "42nd WALTON Women-ch Bangladesh 2024"]
[Site "Dhaka"]
[Date "2024.05.22"]
[Round "3.5"]
[White "Neelava, Choudhury"]
[Black "Noshin, Anjum"]
[Result "1/2-1/2"]
[ECO "C78"]
[WhiteElo "1778"]
[BlackElo "2025"]
[Annotator "NA RC"]
[PlyCount "110"]
[EventDate "2024.05.20"]
[EventType "tourn"]
[EventCountry "BAN"]
[SourceTitle "playchess.com"]
[Source "ChessBase"]
[SourceQuality "1"]
[TimeControl "40/5400+30:1800+30"]

1. e4 {[%emt 0:00:03]} e5 {[%emt 0:00:06]} 2. Nf3 {[%emt 0:00:08]} Nc6 {[%emt 0:00:08]} 3. Bb5 {[%emt 0:00:14]} a6 {[%emt 0:00:06]} 4. Ba4 {[%emt 0:00:08]} Nf6 {[%emt 0:00:09]} 5. O-O {[%emt 0:00:17]} Bc5 {[%emt 0:00:10]} 6. c3 {[%emt 0:00:02]} Ba7 {[%emt 0:00:19]} 7. d4 {[%emt 0:00:13]} b5 {[%emt 0:00:08] C78: Ruy Lopez: Archangelsk and Möller Defences.} 8. Bb3 {[%emt 0:00:07]} d6 {[%emt 0:00:14]} 9. Bd5 {[%emt 0:04:45] 9.Be3 gains popularity.} Nxd5 {[%emt 0:03:42]} 10. exd5 {[%emt 0:00:53]} Ne7 {[%emt 0:00:13]} 11. dxe5 {[%emt 0:10:32]} dxe5 {[%emt 0:00:32]} 12. Nxe5 {[%emt 0:01:33]} Qxd5 {[%emt 0:01:36]} 13. Bf4 $146 {[%emt 0:03:21]} ({Predecessor:} 13. Qxd5 Nxd5 14. Re1 Be6 15. a4 O-O 16. Nc6 bxa4 17. Nxa7 Rxa7 18. Rxa4 Rb8 19. Rd4 {½-½ Kupsch,W-Kunz,P Saarland-ch A 2004 (7)}) 13... Bb7 {[%emt 0:13:33]} 14. Qxd5 {[%emt 0:06:32]} Nxd5 {[%emt 0:01:32]} 15. Bg3 {[%emt 0:01:38]} f6 {[%emt 0:02:39]} 16. Nf3 {[%emt 0:04:41]} Kf7 {[%emt 0:03:37]} 17. Nbd2 {[%emt 0:03:16]} Bb6 {[%emt 0:06:02]} 18. c4 {[%emt 0:03:57]} Ne7 {[%emt 0:01:08]} 19. b4 {[%emt 0:04:00]} Bxf3 {[%emt 0:15:40]} 20. Nxf3 {[%emt 0:02:48]} bxc4 {[%emt 0:00:23]} 21. Rac1 {[%emt 0:02:04]} Nf5 {[%emt 0:02:01]} 22. Rxc4 {[%emt 0:01:41]} Nxg3 {[%emt 0:00:09]} 23. hxg3 {[%emt 0:00:05]} a5 {[%emt 0:04:00]} 24. a4 $15 {[%emt 0:05:05]} axb4 {[%emt 0:03:04]} 25. Rxb4 {[%emt 0:00:06]} Rhd8 {[%emt 0:00:09]} 26. Re4 {[%emt 0:03:03]} Re8 {[%emt 0:09:29]} 27. Rfe1 {[%emt 0:01:21]} Rxe4 {[%emt 0:00:23]} 28. Rxe4 {[%emt 0:00:09]} Re8 {[%emt 0:00:23]} 29. Rxe8 {[%emt 0:18:08]} Kxe8 {[%emt 0:00:10]} 30. Kf1 {[%emt 0:00:40]} Kd7 {[%emt 0:00:25]} 31. Ke2 {[%emt 0:00:06]} Kc6 {[%emt 0:02:34]} 32. Nh4 {[%emt 0:02:48]} g6 {[%emt 0:00:17]} 33. f4 {[%emt 0:03:59]} Kc5 {[%emt 0:00:14]} 34. Kd3 {[%emt 0:04:16]} Kb4 {[%emt 0:01:37]} 35. f5 {[%emt 0:00:14]} Kb3 {[%emt 0:07:57]} 36. Nxg6 {[%emt 0:13:53]} c5 {[%emt 0:00:26]} 37. Ne5 {[%emt 0:01:36]} fxe5 {[%emt 0:02:57]} 38. f6 {[%emt 0:00:30]} Bd8 {[%emt 0:00:16]} 39. a5 {[%emt 0:00:35]} c4+ {[%emt 0:00:38]} 40. Ke4 {[%emt 0:00:19]} c3 {[%emt 0:00:25]} 41. f7 {[%emt 0:30:19]} Be7 {[%emt 0:30:14]} 42. a6 {[%emt 0:00:06]} c2 {[%emt 0:00:05]} 43. a7 {[%emt 0:00:07]} c1=Q {[%emt 0:00:06]} 44. a8=Q {[%emt 0:00:07]} Qc4+ {[%emt 0:15:40]} 45. Kxe5 {[%emt 0:00:00]} Qxf7 {[%emt 0:00:00]} 46. Qf3+ {[%emt 0:00:00]} Qxf3 {[%emt 0:00:00]} 47. gxf3 {[%emt 0:00:00]} Kc4 {[%emt 0:00:00]} 48. Ke6 {[%emt 0:00:00]} Bg5 {[%emt 0:00:00]} 49. g4 {[%emt 0:00:00]} Kd4 {[%emt 0:00:00]} 50. Kf5 {[%emt 0:00:00]} Bh6 {[%emt 0:00:00]} 51. g5 {[%emt 0:00:00]} Bg7 {[%emt 0:00:00]} 52. Ke6 {[%emt 0:00:00]} Ke3 {[%emt 0:00:00]} 53. Kf7 {[%emt 0:00:00]} Be5 {[%emt 0:00:00]} 54. Kg8 {[%emt 0:00:00]} Bf4 {[%emt 0:00:00]} 55. Kxh7 {[%emt 0:00:00]} Bxg5 {[%emt 0:00:00]} 1/2-1/2

[Event "42nd WALTON Women-ch Bangladesh 2024"]
[Site "Dhaka"]
[Date "2024.05.22"]
[Round "3.6"]
[White "Kazi Zarin, Tasnim"]
[Black "Sultana, Sharmin Shirin"]
[Result "0-1"]
[ECO "B22"]
[WhiteElo "1854"]
[BlackElo "1927"]
[Annotator "NA RC"]
[PlyCount "46"]
[EventDate "2024.05.20"]
[EventType "tourn"]
[EventCountry "BAN"]
[SourceTitle "playchess.com"]
[Source "ChessBase"]
[SourceQuality "1"]
[TimeControl "40/5400+30:1800+30"]

1. e4 {[%emt 0:00:05]} c5 {[%emt 0:00:03]} 2. Nf3 {[%emt 0:00:05]} e6 {[%emt 0:00:06]} 3. c3 {[%emt 0:00:04]} d5 {[%emt 0:00:44]} 4. exd5 {[%emt 0:00:06]} Qxd5 {[%emt 0:00:09]} 5. d4 {[%emt 0:00:10]} Nf6 {[%emt 0:00:45]} 6. Na3 {[%emt 0:00:10]} Nc6 {[%emt 0:02:28]} 7. Be3 {[%emt 0:00:38]} cxd4 {[%emt 0:04:10]} 8. Nb5 {[%emt 0:00:05]} Qd8 {[%emt 0:01:37]} 9. Nbxd4 {[%emt 0:00:06]} Nd5 {[%emt 0:08:31]} 10. Nxc6 {[%emt 0:00:13]} bxc6 {[%emt 0:00:06]} 11. Bd2 {[%emt 0:00:03]} Qb6 {[%emt 0:09:24]} 12. c4 {[%emt 0:17:05]} (12. Bd3 $11) 12... Bc5 {[%emt 0:02:08]} 13. Bd3 {[%emt 0:13:41]} Bxf2+ {[%emt 0:10:33]} 14. Ke2 {[%emt 0:02:23] [#]} Ne3 {[%emt 0:24:28]} ({Black should try} 14... Nf6 $1 $17 15. Rf1 Bc5) 15. Qc1 {[%emt 0:03:44]} Nf5 {[%emt 0:03:33]} 16. Bxf5 {[%emt 0:05:33]} exf5 {[%emt 0:00:03]} 17. Qc3 {[%emt 0:00:06]} O-O $17 {[%emt 0:03:05]} 18. b4 {[%emt 0:01:08]} Re8+ {[%emt 0:00:56]} 19. Kf1 {[%emt 0:03:59]} Ba6 {[%emt 0:01:03]} 20. a4 {[%emt 0:05:01]} Be3 {[%emt 0:08:48]} 21. Rc1 {[%emt 0:12:29]} Bxd2 {[%emt 0:01:50]} 22. Qxd2 {[%emt 0:00:55]} Rad8 {[%emt 0:03:32]} 23. Qb2 {[%emt 0:05:40]} Bxc4+ {[%emt 0:00:50]} 0-1

[Event "42nd WALTON Women-ch Bangladesh 2024"]
[Site "Dhaka"]
[Date "2024.05.23"]
[Round "4.1"]
[White "Wadifa, Ahmed"]
[Black "Sultana, Sharmin Shirin"]
[Result "1/2-1/2"]
[ECO "B82"]
[WhiteElo "1921"]
[BlackElo "1927"]
[Annotator "NA RC"]
[PlyCount "110"]
[EventDate "2024.05.20"]
[EventType "tourn"]
[EventCountry "BAN"]
[SourceTitle "playchess.com"]
[Source "ChessBase"]
[SourceQuality "1"]
[TimeControl "40/5400+30:1800+30"]

1. e4 {[%emt 0:00:02]} c5 {[%emt 0:00:10]} 2. Nf3 {[%emt 0:00:06]} e6 {[%emt 0:00:03]} 3. d4 {[%emt 0:00:06]} cxd4 {[%emt 0:00:06]} 4. Nxd4 {[%emt 0:00:04]} a6 {[%emt 0:00:28]} 5. Nc3 {[%emt 0:00:07]} Qc7 {[%emt 0:00:30]} 6. Bd3 {[%emt 0:00:07]} Nf6 {[%emt 0:02:25]} 7. Qe2 {[%emt 0:00:48]} d6 {[%emt 0:02:13]} 8. f4 {[%emt 0:05:01]} Nc6 {[%emt 0:07:39] B82: Sicilian Scheveningen: 6 f4.} 9. Nxc6 {[%emt 0:10:52]} bxc6 {[%emt 0:00:27]} 10. g4 {[%emt 0:00:55]} e5 {[%emt 0:16:56]} (10... Nd7 $11) 11. g5 {[%emt 0:05:57]} Nd7 {[%emt 0:01:07]} 12. f5 {[%emt 0:00:27]} Nc5 {[%emt 0:14:21]} 13. Bc4 {[%emt 0:17:20]} Rb8 {[%emt 0:14:57]} 14. Rf1 {[%emt 0:14:40]} a5 {[%emt 0:01:53]} 15. a3 {[%emt 0:04:37]} a4 {[%emt 0:14:52]} 16. g6 {[%emt 0:04:50]} hxg6 {[%emt 0:02:15]} 17. fxg6 {[%emt 0:00:50]} f6 {[%emt 0:00:27]} 18. Bf7+ {[%emt 0:00:37]} Kd8 {[%emt 0:03:33]} 19. Be3 {[%emt 0:01:29]} Qb6 {[%emt 0:09:31]} 20. Bxc5 {[%emt 0:07:33]} Qxc5 {[%emt 0:01:35]} 21. O-O-O {[%emt 0:00:30] [#]} Rh3 {[%emt 0:01:28]} (21... Kc7 $1 $17) 22. Qf2 {[%emt 0:09:26]} (22. Nxa4 $11 {remains equal.} Qa7 23. Bb3) 22... Qa5 {[%emt 0:02:23]} 23. Rd3 {[%emt 0:00:21]} Rxd3 {[%emt 0:00:36]} 24. cxd3 {[%emt 0:00:02]} Ba6 {[%emt 0:00:23]} 25. Rd1 $2 {[%emt 0:01:55] [#]} (25. Qa7 $16 {stays on course.} Qb6 26. Qxb6+ Rxb6 27. Nxa4) 25... Bb5 $2 {[%emt 0:01:14]} (25... d5 $1 $17 26. Qc2 (26. exd5 Bxa3 27. Rd2 Bxb2+ 28. Rxb2 Qxc3+ 29. Rc2 Qa3+ 30. Kd2 Qxd3+ 31. Kc1 Qa3+ 32. Kd2 Rb1 33. Qf5 Rh1 34. Qe4 Rxh2+ 35. Kd1 Qa1+ 36. Rc1 Qb2 37. Rc2 Qb1+ 38. Rc1 Qxe4 39. dxc6 Qh1#) 26... Rb3) 26. Rd2 {[%emt 0:02:47]} Kc7 {[%emt 0:00:26]} 27. Nxb5+ {[%emt 0:01:12]} Qxb5 {[%emt 0:00:30]} 28. Bc4 {[%emt 0:00:58]} Qb6 {[%emt 0:00:36]} 29. Qxb6+ {[%emt 0:00:52]} Kxb6 {[%emt 0:00:21]} 30. h4 {[%emt 0:02:16]} Kc5 {[%emt 0:00:34]} (30... f5 $1 $11) 31. Be6 {[%emt 0:02:42]} d5 {[%emt 0:00:23]} 32. Rc2+ {[%emt 0:01:58]} Kd6 {[%emt 0:00:04]} 33. Bf5 {[%emt 0:00:12]} Be7 $1 {[%emt 0:01:27]} 34. h5 {[%emt 0:00:43]} Bf8 {[%emt 0:00:16]} 35. Bh3 {[%emt 0:02:01]} Rb3 {[%emt 0:00:19]} 36. exd5 {[%emt 0:01:11]} cxd5 $18 {[%emt 0:00:26]} ({Black should try} 36... Rxd3 $14 37. Rxc6+ Kxd5 38. Bg2+ e4) 37. Rc8 {[%emt 0:00:32]} Rxd3 {[%emt 0:01:03]} 38. Rxf8 {[%emt 0:02:05]} Rxh3 {[%emt 0:00:05]} 39. Rxf6+ {[%emt 0:00:12]} Kc5 {[%emt 0:00:34]} 40. Rf7 {[%emt 0:01:26]} Rxh5 {[%emt 0:00:04]} 41. Rxg7 {[%emt 0:30:06]} Rg5 {[%emt 0:31:08]} 42. Rc7+ {[%emt 0:00:22]} Kd4 {[%emt 0:00:11]} 43. g7 {[%emt 0:00:12]} Kd3 {[%emt 0:00:00]} 44. Rc3+ {[%emt 0:00:00]} Ke4 {[%emt 0:00:00]} 45. Rc7 {[%emt 0:00:00]} Rg2 {[%emt 0:00:00]} 46. Kd1 {[%emt 0:00:00]} d4 {[%emt 0:00:00]} 47. Re7 {[%emt 0:00:00]} d3 {[%emt 0:00:00]} 48. Ke1 {[%emt 0:00:00]} Kd4 {[%emt 0:02:10]} 49. Kf1 {[%emt 0:00:00]} Rg6 {[%emt 0:00:07]} 50. Kf2 {[%emt 0:00:00]} e4 {[%emt 0:02:09]} 51. Rd7+ {[%emt 0:00:00]} Ke5 {[%emt 0:00:28]} 52. Ke3 {[%emt 0:00:00]} Rg3+ {[%emt 0:00:36]} 53. Kf2 {[%emt 0:00:00]} Rg6 {[%emt 0:00:21]} 54. Ke3 {[%emt 0:00:00]} Rg3+ {[%emt 0:00:41]} 55. Kf2 {[%emt 0:00:00]} Rg6 {[%emt 0:00:46]} 1/2-1/2

[Event "42nd WALTON Women-ch Bangladesh 2024"]
[Site "Dhaka"]
[Date "2024.05.23"]
[Round "4.2"]
[White "Noshin, Anjum"]
[Black "Kazi Zarin, Tasnim"]
[Result "1-0"]
[ECO "C11"]
[WhiteElo "2025"]
[BlackElo "1854"]
[Annotator "NA RC"]
[PlyCount "109"]
[EventDate "2024.05.20"]
[EventType "tourn"]
[EventCountry "BAN"]
[SourceTitle "playchess.com"]
[Source "ChessBase"]
[SourceQuality "1"]
[TimeControl "40/5400+30:1800+30"]

1. e4 {[%emt 0:00:04]} e6 {[%emt 0:01:03]} 2. d4 {[%emt 0:00:20]} d5 {[%emt 0:00:05]} 3. Nc3 {[%emt 0:00:57]} Nf6 {[%emt 0:00:11]} 4. e5 {[%emt 0:00:24]} Nfd7 {[%emt 0:00:08]} 5. f4 {[%emt 0:00:12]} c5 {[%emt 0:00:51]} 6. Nf3 {[%emt 0:00:12]} Nc6 {[%emt 0:00:11]} 7. Be3 {[%emt 0:00:18]} Be7 {[%emt 0:00:07]} 8. Qd2 {[%emt 0:00:51]} O-O {[%emt 0:00:33]} 9. Nd1 {[%emt 0:07:04] C11: French: Classical System: 4 e5 and 4 Bg5 dxe4.} f6 {[%emt 0:05:45]} 10. exf6 {[%emt 0:15:45]} Nxf6 {[%emt 0:03:20]} 11. Nf2 $1 {[%emt 0:04:29]} Ne4 {[%emt 0:04:00]} 12. Nxe4 {[%emt 0:00:28]} dxe4 {[%emt 0:00:05]} 13. Ne5 {[%emt 0:00:06]} cxd4 {[%emt 0:12:29]} 14. Nxc6 {[%emt 0:00:09]} bxc6 {[%emt 0:01:16]} 15. Bxd4 {[%emt 0:01:17]} c5 {[%emt 0:06:11]} 16. Be5 {[%emt 0:02:13]} Bh4+ {[%emt 0:04:00]} 17. g3 {[%emt 0:00:19]} Qxd2+ {[%emt 0:01:28]} 18. Kxd2 {[%emt 0:00:06]} Bb7 {[%emt 0:06:49]} 19. Ke3 {[%emt 0:01:29]} Bf6 {[%emt 0:01:26]} 20. Bxf6 {[%emt 0:00:45]} gxf6 {[%emt 0:05:27]} 21. Bh3 {[%emt 0:10:40]} f5 {[%emt 0:06:18]} 22. g4 {[%emt 0:02:53]} Rf7 {[%emt 0:02:40]} 23. gxf5 {[%emt 0:02:33]} exf5 {[%emt 0:00:01]} 24. Rhg1+ {[%emt 0:00:13]} Kf8 {[%emt 0:00:31]} 25. Rg5 {[%emt 0:00:34]} Bc8 {[%emt 0:00:10]} 26. Rd1 {[%emt 0:02:25]} Be6 {[%emt 0:06:18]} 27. Rd6 {[%emt 0:05:26]} Ke7 {[%emt 0:01:15]} 28. Ra6 {[%emt 0:04:37]} Rff8 {[%emt 0:08:20]} 29. Ra5 {[%emt 0:03:26]} Rfb8 {[%emt 0:07:03]} 30. b3 {[%emt 0:03:32]} Rg8 {[%emt 0:05:43]} 31. Rxg8 {[%emt 0:10:39]} Rxg8 {[%emt 0:00:01]} 32. Rxa7+ {[%emt 0:00:09]} Kd6 {[%emt 0:00:50]} 33. Rxh7 {[%emt 0:02:25]} Ra8 {[%emt 0:00:21]} 34. a4 {[%emt 0:04:38]} c4 {[%emt 0:00:17]} 35. Rh5 {[%emt 0:04:27]} cxb3 {[%emt 0:00:53]} 36. cxb3 {[%emt 0:00:06]} Ra5 {[%emt 0:01:45]} ({Better is} 36... Rb8 $1 $14 37. Bxf5 Bd5) 37. b4 {[%emt 0:05:05]} (37. Bg4 $16) 37... Rxa4 {[%emt 0:04:33]} 38. Bxf5 {[%emt 0:00:10]} Bc4 {[%emt 0:00:56]} 39. Rh6+ {[%emt 0:02:29]} Kc7 {[%emt 0:00:34]} 40. Bxe4 {[%emt 0:00:34]} Rxb4 {[%emt 0:00:09]} 41. f5 {[%emt 0:30:33]} Kd7 {[%emt 0:30:41]} 42. Rh4 {[%emt 0:04:36]} Ke7 $2 {[%emt 0:01:12]} (42... Rb2 43. Kf4 Bf7) 43. Bd3 {[%emt 0:01:12]} Bxd3 {[%emt 0:00:38]} 44. Rxb4 {[%emt 0:00:08]} Bxf5 {[%emt 0:00:01]} 45. Kf4 {[%emt 0:00:10]} Bg6 {[%emt 0:00:38]} 46. Kg5 {[%emt 0:00:07]} Bf7 {[%emt 0:00:20]} 47. Kh6 {[%emt 0:00:33]} Kf6 {[%emt 0:00:52]} 48. Rf4+ {[%emt 0:00:07]} Ke6 {[%emt 0:00:11]} 49. Kg7 {[%emt 0:00:06]} Bh5 {[%emt 0:00:26]} 50. h4 {[%emt 0:00:43]} Ke5 {[%emt 0:01:06]} 51. Rf6 {[%emt 0:00:21]} Bg4 {[%emt 0:00:31]} 52. Rf8 {[%emt 0:00:42]} Ke6 {[%emt 0:00:36]} 53. Kg6 {[%emt 0:00:22]} Ke7 {[%emt 0:00:26]} 54. Rf4 {[%emt 0:00:07]} Bd7 {[%emt 0:00:45]} 55. Rf7+ {[%emt 0:00:09]} 1-0